fUSD/lending_fUSD_20250514
["ID","MTS","AMOUNT","RATE_DAILY","PERIOD"]
[361109164,1747264260885,-5000.0,0.00011641,2]
[361109165,1747264260894,-5000.0,0.00011641,2]
[361109166,1747264260904,-5000.0,0.00011641,2]
[361109167,1747264260913,-620.0,0.00011719,2]
[361109168,1747264260922,-151.0,0.00011719,2]
[361109169,1747264260931,-151.0,0.00011719,2]
[361109170,1747264260940,-151.0,0.00011719,2]
[361109171,1747264260949,-154.091666,0.00011719,2]
[361109172,1747264260959,-151.0,0.00011719,2]
[361109173,1747264260968,-151.0,0.00011719,2]
[361109174,1747264260977,-820.50872079,0.00011719,2]
[361109175,1747264260987,-500.0,0.00011721,2]
[361109176,1747264260997,-702.82396487,0.00011721,2]
[361109177,1747264261006,-42850.28304662,0.00011721,2]
[361109178,1747264261015,-151.0,0.00011724,2]
[361109179,1747264261025,-151.0,0.00011724,2]
[361109180,1747264261035,-151.0,0.00011724,2]
[361109181,1747264261045,-157.076941,0.00011724,2]
[361109182,1747264261055,-151.0,0.00011724,2]
[361109183,1747264261065,-151.0,0.00011724,2]
[361109184,1747264261074,-167.194832,0.00011724,2]
[361109185,1747264261084,-151.0,0.00011724,2]
[361109186,1747264261093,-151.0,0.00011724,2]
[361109187,1747264261103,-151.0,0.00011724,2]
[361109188,1747264261113,-10000.0,0.00011724,2]
[361109189,1747264261122,-151.0,0.00011724,2]
[361109190,1747264261132,-151.0,0.00011724,2]
[361109191,1747264261142,-177.496042,0.00011724,2]
[361109192,1747264261152,-177.496042,0.00011724,2]
[361109193,1747264261162,-151.0,0.00011724,2]
[361109194,1747264261172,-151.0,0.00011724,2]
[361109195,1747264261182,-460.7,0.00011724,2]
[361109196,1747264261191,-400.0,0.00011724,2]
[361109197,1747264261203,-564.43,0.00011724,2]
[361109198,1747264261214,-591.33,0.00011724,2]
[361109199,1747264261223,-400.0,0.00011724,2]
[361109200,1747264261233,-400.0,0.00011724,2]
[361109201,1747264261243,-1034.53,0.00011724,2]
[361109202,1747264261253,-3042.34,0.00011724,2]
[361109203,1747264261263,-400.0,0.00011724,2]
[361109204,1747264261272,-400.0,0.00011724,2]
[361109205,1747264261282,-400.0,0.00011724,2]
[361109206,1747264261291,-164.723669,0.00011724,2]
[361109207,1747264261301,-400.0,0.00011724,2]
[361109208,1747264261311,-164.723669,0.00011724,2]
[361109209,1747264261321,-688.76,0.00011724,2]
[361109210,1747264261330,-4870.56,0.00011724,2]
[361109211,1747264261340,-623.04,0.00011724,2]
[361109212,1747264261350,-729.601435,0.00011724,2]
[361109213,1747264261359,-729.601435,0.00011724,2]
[361109214,1747264261369,-1611.73,0.00011724,2]
[361109215,1747264261378,-583.04,0.00011724,2]
[361109216,1747264261388,-520.17,0.00011724,2]
[361109217,1747264261398,-400.0,0.00011724,2]
[361109218,1747264261408,-400.0,0.00011724,2]
[361109219,1747264261419,-904.64,0.00011724,2]
[361109220,1747264261428,-400.0,0.00011724,2]
[361109221,1747264261439,-400.0,0.00011724,2]
[361109222,1747264261449,-400.0,0.00011724,2]
[361109223,1747264261459,-455.41,0.00011724,2]
[361109224,1747264261469,-824.3,0.00011724,2]
[361109225,1747264261479,-1128.45,0.00011724,2]
[361109226,1747264261488,-531.71,0.00011724,2]
[361109227,1747264261498,-400.0,0.00011724,2]
[361109228,1747264261509,-1437.463881,0.00011724,2]
[361109229,1747264261518,-389.23530848,0.00011724,2]
[361109230,1747264261528,-662.22,0.00011724,2]
[361109231,1747264261540,-400.0,0.00011724,2]
[361109232,1747264261551,-400.0,0.00011724,2]
[361109233,1747264261561,-273.92,0.00011724,2]
[361109234,1747264261571,-400.0,0.00011724,2]
[361109235,1747264261583,-400.0,0.00011724,2]
[361109236,1747264261593,-400.64075811,0.00011725,2]
[361109237,1747264261603,-302.86855257,0.00011725,2]
[361109238,1747264261614,-400.0,0.00011725,2]
[361109239,1747264261625,-400.0,0.00011725,2]
[361109240,1747264261635,-333.00769338,0.00011725,2]
[361109241,1747264261645,-400.0,0.00011725,2]
[361109242,1747264261655,-400.0,0.00011725,2]
[361109243,1747264261665,-400.0,0.00011725,2]
[361109244,1747264261676,-400.0,0.00011725,2]
[361109245,1747264261686,-400.0,0.00011725,2]
[361109246,1747264261696,-151.0,0.00011725,2]
[361109247,1747264261706,-500.0,0.00011725,2]
[361109248,1747264261716,-763.26,0.00011725,2]
[361109249,1747264261726,-400.0,0.00011725,2]
[361109250,1747264261736,-497.32,0.00011725,2]
[361109251,1747264261747,-400.0,0.00011725,2]
[361109252,1747264261757,-603.55,0.00011725,2]
[361109253,1747264261766,-400.0,0.00011725,2]
[361109254,1747264261776,-400.0,0.00011725,2]
[361109255,1747264261786,-400.0,0.00011725,2]
[361109256,1747264261795,-400.0,0.00011725,2]
[361109257,1747264261805,-400.0,0.00011725,2]
[361109258,1747264261815,-400.0,0.00011725,2]
[361109259,1747264261825,-400.0,0.00011725,2]
[361109260,1747264261834,-400.0,0.00011725,2]
[361109261,1747264261844,-500.0,0.00011725,2]
[361109262,1747264261854,-836.53,0.00011725,2]
[361109263,1747264261864,-250.0,0.00011725,2]
[361109264,1747264261873,-400.0,0.00011725,2]
[361109265,1747264261883,-331.26297631,0.00011725,2]
[361109266,1747264261892,-400.0,0.00011725,2]
[361109267,1747264261902,-547.56,0.00011725,2]
[361109268,1747264261912,-500.0,0.00011725,2]
[361109269,1747264261922,-400.0,0.00011725,2]
[361109270,1747264261932,-400.0,0.00011725,2]
[361109271,1747264261942,-400.0,0.00011725,2]
[361109272,1747264261951,-500.0,0.00011725,2]
[361109273,1747264261961,-453.66,0.00011725,2]
[361109274,1747264261971,-400.0,0.00011725,2]
[361109275,1747264261981,-456.79,0.00011725,2]
[361109276,1747264261991,-624.04,0.00011725,2]
[361109277,1747264262001,-400.0,0.00011725,2]
[361109278,1747264262010,-400.0,0.00011725,2]
[361109279,1747264262020,-554.63,0.00011725,2]
[361109280,1747264262031,-400.0,0.00011725,2]
[361109281,1747264262041,-400.0,0.00011725,2]
[361109282,1747264262052,-400.0,0.00011725,2]
[361109283,1747264262062,-565.99,0.00011725,2]
[361109284,1747264262071,-315.87,0.00011725,2]
[361109285,1747264262080,-400.0,0.00011725,2]
[361109286,1747264262090,-400.0,0.00011725,2]
[361109287,1747264262100,-450.0,0.00011725,2]
[361109288,1747264262110,-400.0,0.00011725,2]
[361109289,1747264262120,-400.0,0.00011725,2]
[361109290,1747264262129,-400.0,0.00011725,2]
[361109291,1747264262138,-400.0,0.00011725,2]
[361109292,1747264262148,-400.0,0.00011725,2]
[361109293,1747264262158,-400.0,0.00011725,2]
[361109294,1747264262167,-400.0,0.00011725,2]
[361109295,1747264262177,-400.0,0.00011725,2]
[361109296,1747264262187,-385.29462078,0.00011725,2]
[361109297,1747264262197,-400.0,0.00011725,2]
[361109298,1747264262207,-400.0,0.00011725,2]
[361109299,1747264262218,-470.57,0.00011725,2]
[361109300,1747264262227,-400.0,0.00011725,2]
[361109301,1747264262239,-400.0,0.00011725,2]
[361109302,1747264262251,-400.0,0.00011725,2]
[361109303,1747264262260,-400.0,0.00011725,2]
[361109304,1747264262270,-724.75,0.00011725,2]
[361109305,1747264262280,-405.37722844,0.00011725,2]
[361109306,1747264262291,-542.38,0.00011725,2]
[361109307,1747264262300,-1542.16,0.00011725,2]
[361109308,1747264262310,-438.1506296,0.00011725,2]
[361109309,1747264262320,-400.0,0.00011725,2]
[361109310,1747264262330,-426.08,0.00011725,2]
[361109311,1747264262342,-400.0,0.00011725,2]
[361109312,1747264262351,-400.0,0.00011725,2]
[361109313,1747264262361,-400.0,0.00011725,2]
[361109314,1747264262372,-429.72306463,0.00011725,2]
[361109315,1747264262382,-400.0,0.00011725,2]
[361109316,1747264262392,-400.0,0.00011725,2]
[361109317,1747264262403,-400.0,0.00011725,2]
[361109318,1747264262412,-400.0,0.00011725,2]
[361109319,1747264262422,-400.0,0.00011725,2]
[361109320,1747264262432,-401.95063712,0.00011725,2]
[361109321,1747264262442,-400.0,0.00011725,2]
[361109322,1747264262452,-400.0,0.00011725,2]
[361109323,1747264262461,-400.0,0.00011725,2]
[361109324,1747264262471,-400.0,0.00011725,2]
[361109325,1747264262481,-400.0,0.00011725,2]
[361109326,1747264262490,-400.0,0.00011725,2]
[361109327,1747264262500,-400.0,0.00011725,2]
[361109328,1747264262510,-400.0,0.00011725,2]
[361109329,1747264262520,-400.0,0.00011725,2]
[361109330,1747264262530,-400.0,0.00011725,2]
[361109331,1747264262542,-400.0,0.00011725,2]
[361109332,1747264262552,-418.1,0.00011725,2]
[361109333,1747264262562,-400.0,0.00011725,2]
[361109334,1747264262572,-400.0,0.00011725,2]
[361109335,1747264262583,-400.0,0.00011725,2]
[361109336,1747264262592,-400.0,0.00011725,2]
[361109337,1747264262603,-400.0,0.00011725,2]
[361109338,1747264262613,-400.0,0.00011725,2]
[361109339,1747264262623,-400.0,0.00011725,2]
[361109340,1747264262633,-322.41284507,0.00011725,2]
[361109341,1747264262643,-400.0,0.00011725,2]
[361109342,1747264262653,-527.91,0.00011725,2]
[361109343,1747264262663,-400.0,0.00011725,2]
[361109344,1747264262673,-400.0,0.00011725,2]
[361109345,1747264262683,-400.0,0.00011725,2]
[361109346,1747264262693,-400.0,0.00011725,2]
[361109347,1747264262703,-400.0,0.00011725,2]
[361109348,1747264262713,-400.0,0.00011725,2]
[361109349,1747264262722,-400.0,0.00011725,2]
[361109350,1747264262732,-192.75326272,0.00011725,2]
[361109351,1747264262742,-400.0,0.00011725,2]
[361109352,1747264262753,-400.0,0.00011725,2]
[361109353,1747264262764,-400.0,0.00011725,2]
[361109354,1747264262775,-400.0,0.00011725,2]
[361109355,1747264262786,-400.0,0.00011725,2]
[361109356,1747264262797,-400.0,0.00011725,2]
[361109357,1747264262808,-400.0,0.00011725,2]
[361109358,1747264262817,-408.21644947,0.00011725,2]
[361109359,1747264262828,-400.0,0.00011725,2]
[361109360,1747264262839,-400.0,0.00011725,2]
[361109361,1747264262848,-400.0,0.00011725,2]
[361109362,1747264262857,-400.0,0.00011725,2]
[361109363,1747264262867,-409.69,0.00011725,2]
[361109364,1747264262877,-400.0,0.00011725,2]
[361109365,1747264262887,-151.0,0.00011725,2]
[361109366,1747264262898,-400.0,0.00011725,2]
[361109367,1747264262908,-561.38,0.00011725,2]
[361109368,1747264262918,-400.0,0.00011725,2]
[361109369,1747264262928,-400.0,0.00011725,2]
[361109370,1747264262937,-400.0,0.00011725,2]
[361109371,1747264262947,-164.44,0.00011725,2]
[361109372,1747264262956,-400.0,0.00011725,2]
[361109373,1747264262967,-408.78507476,0.00011725,2]
[361109374,1747264262979,-400.0,0.00011725,2]
[361109375,1747264262989,-400.0,0.00011725,2]
[361109376,1747264262999,-400.0,0.00011725,2]
[361109377,1747264263010,-400.0,0.00011725,2]
[361109378,1747264263020,-151.0,0.00011725,2]
[361109379,1747264263031,-400.0,0.00011725,2]
[361109380,1747264263041,-400.0,0.00011725,2]
[361109381,1747264263051,-177.496042,0.00011725,2]
[361109382,1747264263062,-483.14,0.00011725,2]
[361109383,1747264263073,-400.0,0.00011725,2]
[361109384,1747264263083,-177.496042,0.00011725,2]
[361109385,1747264263093,-400.0,0.00011725,2]
[361109386,1747264263104,-400.0,0.00011725,2]
[361109387,1747264263115,-400.0,0.00011725,2]
[361109388,1747264263126,-400.0,0.00011725,2]
[361109389,1747264263137,-1223.31,0.00011725,2]
[361109390,1747264263147,-400.0,0.00011725,2]
[361109391,1747264263158,-151.0,0.00011725,2]
[361109392,1747264263168,-400.0,0.00011725,2]
[361109393,1747264263179,-979.31,0.00011725,2]
[361109394,1747264263189,-400.0,0.00011725,2]
[361109395,1747264263199,-400.0,0.00011725,2]
[361109396,1747264263210,-1142.69,0.00011725,2]
[361109397,1747264263221,-400.0,0.00011725,2]
[361109398,1747264263231,-400.0,0.00011725,2]
[361109399,1747264263242,-400.0,0.00011725,2]
[361109400,1747264263253,-686.05,0.00011725,2]
[361109401,1747264263264,-400.0,0.00011725,2]
[361109402,1747264263275,-400.0,0.00011725,2]
[361109403,1747264263286,-748.6,0.00011725,2]
[361109404,1747264263297,-417.26,0.00011725,2]
[361109405,1747264263307,-400.0,0.00011725,2]
[361109406,1747264263317,-400.0,0.00011725,2]
[361109407,1747264263328,-1113.06,0.00011725,2]
[361109408,1747264263338,-795.08,0.00011725,2]
[361109409,1747264263348,-400.0,0.00011725,2]
[361109410,1747264263358,-400.0,0.00011725,2]
[361109411,1747264263369,-400.0,0.00011725,2]
[361109412,1747264263380,-1333.23,0.00011725,2]
[361109413,1747264263391,-400.0,0.00011725,2]
[361109414,1747264263618,-400.0,0.00011725,2]
[361109415,1747264263629,-2056.57,0.00011725,2]
[361109416,1747264263639,-694.96,0.00011725,2]
[361109417,1747264263649,-400.0,0.00011725,2]
[361109418,1747264263659,-915.71,0.00011725,2]
[361109419,1747264263669,-412.24,0.00011725,2]
[361109420,1747264263679,-400.0,0.00011725,2]
[361109421,1747264263690,-906.0,0.00011725,2]
[361109422,1747264263699,-400.0,0.00011725,2]
[361109423,1747264263709,-400.0,0.00011725,2]
[361109424,1747264263723,-920.87,0.00011725,2]
[361109425,1747264263734,-400.0,0.00011725,2]
[361109426,1747264263744,-1261.05,0.00011725,2]
[361109427,1747264263754,-1187.04,0.00011725,2]
[361109428,1747264263765,-400.0,0.00011725,2]
[361109429,1747264263776,-1289.05,0.00011725,2]
[361109430,1747264263787,-400.0,0.00011725,2]
[361109431,1747264263797,-400.0,0.00011725,2]
[361109432,1747264263808,-2923.35,0.00011725,2]
[361109433,1747264263818,-400.0,0.00011725,2]
[361109434,1747264263828,-1022.61,0.00011725,2]
[361109435,1747264263838,-400.0,0.00011725,2]
[361109436,1747264263847,-400.0,0.00011725,2]
[361109437,1747264263857,-711.84,0.00011725,2]
[361109438,1747264263867,-977.42,0.00011725,2]
[361109439,1747264263877,-400.0,0.00011725,2]
[361109440,1747264263887,-472.53495952,0.00011725,2]
[361109441,1747264263897,-890.2,0.00011725,2]
[361109442,1747264263907,-400.0,0.00011725,2]
[361109443,1747264263918,-1350.79,0.00011725,2]
[361109444,1747264263928,-541.83,0.00011725,2]
[361109445,1747264263939,-400.0,0.00011725,2]
[361109446,1747264263949,-400.0,0.00011725,2]
[361109447,1747264263959,-5623.4,0.00011725,2]
[361109448,1747264263970,-1902.44,0.00011725,2]
[361109449,1747264263981,-400.0,0.00011725,2]
[361109450,1747264263991,-400.0,0.00011725,2]
[361109451,1747264264001,-400.0,0.00011725,2]
[361109452,1747264264011,-400.0,0.00011725,2]
[361109453,1747264264021,-400.0,0.00011725,2]
[361109454,1747264264031,-400.0,0.00011725,2]
[361109455,1747264264041,-400.0,0.00011725,2]
[361109456,1747264264051,-400.0,0.00011725,2]
[361109457,1747264264061,-708.2,0.00011725,2]
[361109458,1747264264071,-5758.42,0.00011725,2]
[361109459,1747264264081,-151.0,0.00011725,2]
[361109460,1747264264091,-3168.59,0.00011725,2]
[361109461,1747264264100,-11160.2,0.00011725,2]
[361109462,1747264264111,-400.0,0.00011725,2]
[361109463,1747264264122,-400.0,0.00011725,2]
[361109464,1747264264131,-400.0,0.00011725,2]
[361109465,1747264264141,-2221.92,0.00011725,2]
[361109466,1747264264151,-400.0,0.00011725,2]
[361109467,1747264264161,-400.0,0.00011725,2]
[361109468,1747264264171,-869.38,0.00011725,2]
[361109469,1747264264180,-400.0,0.00011725,2]
[361109470,1747264264190,-547.37,0.00011725,2]
[361109471,1747264264201,-400.0,0.00011725,2]
[361109472,1747264264211,-1582.57,0.00011725,2]
[361109473,1747264264222,-1327.27,0.00011725,2]
[361109474,1747264264232,-400.0,0.00011725,2]
[361109475,1747264264242,-400.0,0.00011725,2]
[361109476,1747264264252,-400.0,0.00011725,2]
[361109477,1747264264262,-674.11,0.00011725,2]
[361109478,1747264264271,-400.0,0.00011725,2]
[361109479,1747264264282,-400.0,0.00011725,2]
[361109480,1747264264291,-400.0,0.00011725,2]
[361109481,1747264264301,-400.0,0.00011725,2]
[361109482,1747264264311,-400.0,0.00011725,2]
[361109483,1747264264321,-531.23,0.00011725,2]
[361109484,1747264264331,-589.15,0.00011725,2]
[361109485,1747264264342,-467.93,0.00011725,2]
[361109486,1747264264352,-3055.08,0.00011725,2]
[361109487,1747264264362,-400.0,0.00011725,2]
[361109488,1747264264372,-906.91,0.00011725,2]
[361109489,1747264264381,-891.28,0.00011725,2]
[361109490,1747264264391,-400.0,0.00011725,2]
[361109491,1747264264401,-400.0,0.00011725,2]
[361109492,1747264264411,-400.77,0.00011725,2]
[361109493,1747264264420,-400.0,0.00011725,2]
[361109494,1747264264432,-400.0,0.00011725,2]
[361109495,1747264264441,-400.0,0.00011725,2]
[361109496,1747264264451,-400.0,0.00011725,2]
[361109497,1747264264463,-400.0,0.00011725,2]
[361109498,1747264264473,-983.55,0.00011725,2]
[361109499,1747264264483,-400.0,0.00011725,2]
[361109500,1747264264493,-400.0,0.00011725,2]
[361109501,1747264264503,-588.18,0.00011725,2]
[361109502,1747264264513,-400.0,0.00011725,2]
[361109503,1747264264523,-2072.02,0.00011725,2]
[361109504,1747264264533,-3903.54,0.00011725,2]
[361109505,1747264264546,-151.0,0.00011725,2]
[361109506,1747264264556,-151.0,0.00011725,2]
[361109507,1747264264566,-400.0,0.00011725,2]
[361109508,1747264264577,-400.0,0.00011725,2]
[361109509,1747264264587,-1202.41,0.00011725,2]
[361109510,1747264264597,-400.0,0.00011725,2]
[361109511,1747264264607,-400.0,0.00011725,2]
[361109512,1747264264618,-980.88,0.00011725,2]
[361109513,1747264264628,-400.73,0.00011725,2]
[361109514,1747264264637,-5749.86,0.00011725,2]
[361109515,1747264264647,-498.76,0.00011725,2]
[361109516,1747264264657,-164.723669,0.00011725,2]
[361109517,1747264264668,-400.0,0.00011725,2]
[361109518,1747264264678,-445.36,0.00011725,2]
[361109519,1747264264688,-400.0,0.00011725,2]
[361109520,1747264264698,-599.43,0.00011725,2]
[361109521,1747264264707,-400.0,0.00011725,2]
[361109522,1747264264719,-164.723669,0.00011725,2]
[361109523,1747264264729,-20037.7,0.00011725,2]
[361109524,1747264264739,-1349.87,0.00011725,2]
[361109525,1747264264749,-805.12,0.00011725,2]
[361109526,1747264264759,-434.42,0.00011725,2]
[361109527,1747264264769,-892.69,0.00011725,2]
[361109528,1747264264778,-729.601435,0.00011725,2]
[361109529,1747264264789,-1683.5,0.00011725,2]
[361109530,1747264264799,-437.47,0.00011725,2]
[361109531,1747264264808,-593.48,0.00011725,2]
[361109532,1747264264818,-639.24,0.00011725,2]
[361109533,1747264264827,-729.601435,0.00011725,2]
[361109534,1747264264837,-5740.66,0.00011725,2]
[361109535,1747264264847,-65970.0,0.00011725,2]
[361109536,1747264264856,-400.0,0.00011725,2]
[361109537,1747264264867,-527.29,0.00011725,2]
[361109538,1747264264876,-1000.0,0.00011725,2]
[361109539,1747264264886,-400.0,0.00011725,2]
[361109540,1747264264896,-400.0,0.00011725,2]
[361109541,1747264264905,-400.0,0.00011725,2]
[361109542,1747264264915,-11054.36,0.00011725,2]
[361109543,1747264264925,-1094.62,0.00011725,2]
[361109544,1747264264935,-400.0,0.00011725,2]
[361109545,1747264264945,-400.0,0.00011725,2]
[361109546,1747264264955,-400.0,0.00011725,2]
[361109547,1747264264964,-400.0,0.00011725,2]
[361109548,1747264264974,-492.15,0.00011725,2]
[361109549,1747264264984,-400.0,0.00011725,2]
[361109550,1747264264994,-151.0,0.00011725,2]
[361109551,1747264265003,-459.17,0.00011725,2]
[361109552,1747264265013,-400.0,0.00011725,2]
[361109553,1747264265023,-400.0,0.00011725,2]
[361109554,1747264265033,-400.0,0.00011725,2]
[361109555,1747264265043,-2539.0,0.00011725,2]
[361109556,1747264265053,-642.94,0.00011725,2]
[361109557,1747264265062,-396.52138242,0.00011725,2]
[361109558,1747264265071,-400.0,0.00011725,2]
[361109559,1747264265081,-400.0,0.00011725,2]
[361109560,1747264265091,-400.0,0.00011725,2]
[361109561,1747264265101,-400.0,0.00011725,2]
[361109562,1747264265111,-2633.62,0.00011725,2]
[361109563,1747264265121,-1818.85,0.00011725,2]
[361109564,1747264265131,-400.0,0.00011725,2]
[361109565,1747264265140,-400.0,0.00011725,2]
[361109566,1747264265150,-400.0,0.00011725,2]
[361109567,1747264265160,-400.0,0.00011725,2]
[361109568,1747264265170,-2188.1,0.00011725,2]
[361109569,1747264265179,-400.0,0.00011725,2]
[361109570,1747264265189,-560.77,0.00011725,2]
[361109571,1747264265199,-467.74,0.00011725,2]
[361109572,1747264265209,-831.49,0.00011725,2]
[361109573,1747264265220,-750.29,0.00011725,2]
[361109574,1747264265230,-1172.14,0.00011725,2]
[361109575,1747264265239,-400.0,0.00011725,2]
[361109576,1747264265249,-571.17,0.00011725,2]
[361109577,1747264265258,-400.0,0.00011725,2]
[361109578,1747264265268,-400.0,0.00011726,2]
[361109579,1747264265278,-400.0,0.00011726,2]
[361109580,1747264265287,-400.0,0.00011726,2]
[361109581,1747264265297,-270.0,0.00011726,2]
[361109582,1747264265307,-500.0,0.00011726,2]
[361109583,1747264265316,-400.0,0.00011726,2]
[361109584,1747264265325,-400.0,0.00011726,2]
[361109585,1747264265335,-703.02,0.00011726,2]
[361109586,1747264265344,-453.30013142,0.00011726,2]
[361109587,1747264265353,-400.0,0.00011726,2]
[361109588,1747264265362,-400.0,0.00011726,2]
[361109589,1747264265374,-538.13,0.00011726,2]
[361109590,1747264265383,-768.77,0.00011726,2]
[361109591,1747264265392,-399.02,0.00011726,2]
[361109592,1747264265402,-482.76,0.00011726,2]
[361109593,1747264265412,-400.0,0.00011726,2]
[361109594,1747264265421,-400.0,0.00011726,2]
[361109595,1747264265431,-400.0,0.00011726,2]
[361109596,1747264265441,-400.0,0.00011726,2]
[361109597,1747264265450,-198.72,0.00011726,2]
[361109598,1747264265460,-400.0,0.00011726,2]
[361109599,1747264265471,-151.0,0.00011726,2]
[361109600,1747264265480,-151.0,0.00011726,2]
[361109601,1747264265490,-400.0,0.00011726,2]
[361109602,1747264265500,-400.0,0.00011726,2]
[361109603,1747264265509,-425.54,0.00011726,2]
[361109604,1747264265519,-400.0,0.00011726,2]
[361109605,1747264265528,-400.0,0.00011726,2]
[361109606,1747264265539,-902.52,0.00011726,2]
[361109607,1747264265551,-151.0,0.00011726,2]
[361109608,1747264265561,-400.0,0.00011726,2]
[361109609,1747264265570,-400.0,0.00011726,2]
[361109610,1747264265582,-444.04,0.00011726,2]
[361109611,1747264265591,-400.0,0.00011726,2]
[361109612,1747264265601,-400.0,0.00011726,2]
[361109613,1747264265611,-400.0,0.00011726,2]
[361109614,1747264265621,-478.11,0.00011726,2]
[361109615,1747264265631,-618.77,0.00011726,2]
[361109616,1747264265641,-914.64,0.00011726,2]
[361109617,1747264265650,-405.64,0.00011726,2]
[361109618,1747264265660,-400.0,0.00011726,2]
[361109619,1747264265669,-592.23,0.00011726,2]
[361109620,1747264265679,-151.0,0.00011726,2]
[361109621,1747264265688,-1199.27,0.00011726,2]
[361109622,1747264265698,-400.0,0.00011726,2]
[361109623,1747264265708,-943.59,0.00011726,2]
[361109624,1747264265719,-400.0,0.00011726,2]
[361109625,1747264265728,-400.0,0.00011726,2]
[361109626,1747264265738,-400.0,0.00011726,2]
[361109627,1747264265747,-400.0,0.00011726,2]
[361109628,1747264265756,-302.64,0.00011726,2]
[361109629,1747264265766,-400.0,0.00011726,2]
[361109630,1747264265775,-400.0,0.00011726,2]
[361109631,1747264265784,-428.18,0.00011726,2]
[361109632,1747264265793,-400.0,0.00011726,2]
[361109633,1747264265803,-400.0,0.00011726,2]
[361109634,1747264265812,-400.0,0.00011726,2]
[361109635,1747264265822,-400.0,0.00011726,2]
[361109636,1747264265831,-400.0,0.00011726,2]
[361109637,1747264265840,-381.09,0.00011726,2]
[361109638,1747264265849,-305.68,0.00011726,2]
[361109639,1747264265859,-400.0,0.00011726,2]
[361109640,1747264265868,-400.0,0.00011726,2]
[361109641,1747264265878,-400.0,0.00011726,2]
[361109642,1747264265887,-400.0,0.00011726,2]
[361109643,1747264265896,-400.0,0.00011726,2]
[361109644,1747264265905,-565.13,0.00011726,2]
[361109645,1747264265914,-393.0,0.00011726,2]
[361109646,1747264265923,-400.0,0.00011726,2]
[361109647,1747264265933,-400.0,0.00011726,2]
[361109648,1747264265942,-400.0,0.00011726,2]
[361109649,1747264265952,-400.0,0.00011726,2]
[361109650,1747264266026,-403.39,0.00011726,2]
[361109651,1747264266036,-400.0,0.00011726,2]
[361109652,1747264266047,-606.57,0.00011726,2]
[361109653,1747264266056,-400.0,0.00011726,2]
[361109654,1747264266066,-400.0,0.00011726,2]
[361109655,1747264266075,-400.0,0.00011726,2]
[361109656,1747264266085,-565.61,0.00011726,2]
[361109657,1747264266094,-223.46761254,0.00011726,2]
[361109658,1747264266103,-407.23,0.00011726,2]
[361109659,1747264266113,-400.0,0.00011726,2]
[361109660,1747264266124,-400.0,0.00011726,2]
[361109661,1747264266133,-400.0,0.00011726,2]
[361109662,1747264266143,-400.0,0.00011726,2]
[361109663,1747264266152,-400.0,0.00011726,2]